[Event "*** SCC Grand Prix: Titled Tuesday Blitz"]
[Site "Chess.com"]
[Date "2020.09.08"]
[Round "7"]
[White "sodastream007"]
[Black "KiranManisha"]
[Result "1-0"]
[WhiteElo "2552"]
[BlackElo "2290"]
[TimeControl "180+1"]
[EndTime "11:16:00 PDT"]
[Termination "sodastream007 won by checkmate"]

1. d4 {[%clk 0:03:00.9]} 1... Nf6 {[%clk 0:02:56.3]} 2. c4 {[%clk 0:03:00.1]}
2... g6 {[%clk 0:02:54.5]} 3. Nc3 {[%clk 0:02:59.8]} 3... d5 {[%clk 0:02:53.7]}
4. cxd5 {[%clk 0:02:59.9]} 4... Nxd5 {[%clk 0:02:54.6]} 5. e4 {[%clk 0:02:59.6]}
5... Nxc3 {[%clk 0:02:55]} 6. bxc3 {[%clk 0:02:59.1]} 6... Bg7 {[%clk
0:02:55.4]} 7. Bc4 {[%clk 0:02:57.5]} 7... O-O {[%clk 0:02:55.5]} 8. Ne2 {[%clk
0:02:54.5]} 8... c5 {[%clk 0:02:55.7]} 9. h4 {[%clk 0:02:54]} 9... h5 {[%clk
0:02:54.2]} 10. Be3 {[%clk 0:02:50.3]} 10... Nc6 {[%clk 0:02:52.4]} 11. Rb1
{[%clk 0:02:43.4]} 11... Na5 {[%clk 0:02:48.4]} 12. Bb5 {[%clk 0:02:40.4]} 12...
a6 {[%clk 0:02:47.3]} 13. Bd3 {[%clk 0:02:38.4]} 13... b5 {[%clk 0:02:45.6]} 14.
f4 {[%clk 0:02:30.4]} 14... Bg4 {[%clk 0:02:44.2]} 15. O-O {[%clk 0:02:28.6]}
15... Rc8 {[%clk 0:02:42.7]} 16. e5 {[%clk 0:02:25.2]} 16... cxd4 {[%clk
0:02:39.5]} 17. cxd4 {[%clk 0:02:25.4]} 17... Nc4 {[%clk 0:02:37.4]} 18. Bf2
{[%clk 0:02:23.4]} 18... e6 {[%clk 0:02:28.2]} 19. a4 {[%clk 0:02:20.7]} 19...
Qd5 {[%clk 0:02:26.3]} 20. axb5 {[%clk 0:02:19.1]} 20... axb5 {[%clk 0:02:27.2]}
21. Qe1 {[%clk 0:02:17.3]} 21... Na3 {[%clk 0:02:16.3]} 22. Rc1 {[%clk
0:02:09.5]} 22... Rxc1 {[%clk 0:02:05.1]} 23. Qxc1 {[%clk 0:02:10.4]} 23... b4
{[%clk 0:02:03.6]} 24. Qb2 {[%clk 0:02:09]} 24... Rb8 {[%clk 0:02:00.4]} 25. Rc1
{[%clk 0:02:07]} 25... Bf8 {[%clk 0:01:59.6]} 26. Nc3 {[%clk 0:02:04.7]} 26...
Qa8 {[%clk 0:01:50.3]} 27. Ne4 {[%clk 0:02:04.4]} 27... Qa4 {[%clk 0:01:46.3]}
28. d5 {[%clk 0:02:00.9]} 28... b3 {[%clk 0:01:36.4]} 29. d6 {[%clk 0:01:58.8]}
29... Bf5 {[%clk 0:01:29.3]} 30. Nf6+ {[%clk 0:01:56.9]} 30... Kg7 {[%clk
0:01:29.4]} 31. Bxf5 {[%clk 0:01:54.9]} 31... exf5 {[%clk 0:01:27.6]} 32. e6
{[%clk 0:01:52.7]} 32... fxe6 {[%clk 0:01:27]} 33. Rc7+ {[%clk 0:01:47.3]} 33...
Kh8 {[%clk 0:01:22.1]} 34. Rh7# {[%clk 0:01:34.3]} 1-0

[Event "*** SCC Grand Prix: Titled Tuesday Blitz"]
[Site "Chess.com"]
[Date "2020.09.08"]
[Round "7"]
[White "Shubinkirill2003"]
[Black "KarstenHansch"]
[Result "1-0"]
[WhiteElo "2642"]
[BlackElo "2472"]
[TimeControl "180+1"]
[EndTime "11:16:16 PDT"]
[Termination "Shubinkirill2003 won by resignation"]

1. e4 {[%clk 0:03:00.9]} 1... c6 {[%clk 0:02:59.8]} 2. d4 {[%clk 0:03:00.4]}
2... d5 {[%clk 0:03:00.7]} 3. exd5 {[%clk 0:03:01.3]} 3... cxd5 {[%clk
0:03:00.4]} 4. Bd3 {[%clk 0:03:02.2]} 4... Nc6 {[%clk 0:03:00.5]} 5. c3 {[%clk
0:03:02.7]} 5... Nf6 {[%clk 0:03:01]} 6. Bf4 {[%clk 0:03:02.2]} 6... Bg4 {[%clk
0:03:00.9]} 7. Qb3 {[%clk 0:03:02.1]} 7... Qd7 {[%clk 0:03:01.3]} 8. Nd2 {[%clk
0:03:01.8]} 8... e6 {[%clk 0:03:01.6]} 9. Ngf3 {[%clk 0:03:02.4]} 9... Bd6
{[%clk 0:03:01.8]} 10. Bxd6 {[%clk 0:03:02.6]} 10... Qxd6 {[%clk 0:03:02.5]} 11.
O-O {[%clk 0:03:03.2]} 11... O-O {[%clk 0:03:02.2]} 12. Rfe1 {[%clk 0:03:03.5]}
12... Ne7 {[%clk 0:03:00.9]} 13. Ne5 {[%clk 0:03:02.2]} 13... Bf5 {[%clk
0:03:00.7]} 14. Qd1 {[%clk 0:03:01]} 14... b5 {[%clk 0:02:50.8]} 15. Bxb5 {[%clk
0:02:52.4]} 15... Rfb8 {[%clk 0:02:47.3]} 16. Bd3 {[%clk 0:02:51.3]} 16... Rxb2
{[%clk 0:02:46.6]} 17. Nb3 {[%clk 0:02:49.1]} 17... a5 {[%clk 0:02:20.5]} 18.
Bxf5 {[%clk 0:02:44.4]} 18... Nxf5 {[%clk 0:02:17.2]} 19. Nd3 {[%clk 0:02:44.1]}
19... Qa3 {[%clk 0:02:08.1]} 20. Nxb2 {[%clk 0:02:43.5]} 20... Qxb2 {[%clk
0:02:08.1]} 21. Qc1 {[%clk 0:02:43.6]} 21... Qxc1 {[%clk 0:02:07.9]} 22. Raxc1
{[%clk 0:02:43.4]} 22... a4 {[%clk 0:02:06.1]} 23. Nc5 {[%clk 0:02:42.9]} 23...
Nd6 {[%clk 0:02:05.7]} 24. f3 {[%clk 0:02:36.4]} 24... h5 {[%clk 0:02:03]} 25.
Rb1 {[%clk 0:02:36]} 25... g6 {[%clk 0:02:01.6]} 26. Rb4 {[%clk 0:02:35.1]}
26... a3 {[%clk 0:02:00.1]} 27. Reb1 {[%clk 0:02:34]} 27... Nc4 {[%clk
0:01:54.8]} 28. Rb8+ {[%clk 0:02:31.2]} 28... Rxb8 {[%clk 0:01:55]} 29. Rxb8+
{[%clk 0:02:31.2]} 29... Kg7 {[%clk 0:01:55.2]} 30. Rb7 {[%clk 0:02:27.5]} 30...
Kf8 {[%clk 0:01:55.2]} 31. Ra7 {[%clk 0:02:17.2]} 31... Ne8 {[%clk 0:01:52.6]}
32. Nd7+ {[%clk 0:02:14.3]} 32... Kg7 {[%clk 0:01:52.3]} 33. Ne5 {[%clk
0:02:14.1]} 33... Ned6 {[%clk 0:01:50.8]} 34. Nxc4 {[%clk 0:02:12.4]} 34... Nxc4
{[%clk 0:01:50.9]} 35. Kf2 {[%clk 0:02:12.2]} 35... Kf6 {[%clk 0:01:51.1]} 36.
g3 {[%clk 0:02:07]} 36... g5 {[%clk 0:01:50.5]} 37. Ke2 {[%clk 0:02:01.2]} 37...
Kg6 {[%clk 0:01:48.8]} 38. Ra8 {[%clk 0:02:00]} 38... f5 {[%clk 0:01:48.4]} 39.
h4 {[%clk 0:01:56]} 39... gxh4 {[%clk 0:01:46.1]} 40. gxh4 {[%clk 0:01:56.9]}
40... Kg7 {[%clk 0:01:37.5]} 41. Re8 {[%clk 0:01:53.2]} 41... Kf7 {[%clk
0:01:36.7]} 42. Rh8 {[%clk 0:01:52.8]} 42... Kg7 {[%clk 0:01:36.9]} 43. Rxh5
{[%clk 0:01:52]} 43... Nd6 {[%clk 0:01:26.7]} 44. Rg5+ {[%clk 0:01:51.4]} 44...
Kf7 {[%clk 0:01:26.3]} 45. Rg1 {[%clk 0:01:49.5]} 45... f4 {[%clk 0:01:26.4]}
46. Rg4 {[%clk 0:01:48.6]} 46... Nb5 {[%clk 0:01:24.6]} 47. Kd3 {[%clk
0:01:45.3]} 1-0

[Event "*** SCC Grand Prix: Titled Tuesday Blitz"]
[Site "Chess.com"]
[Date "2020.09.08"]
[Round "7"]
[White "GM_LOADING"]
[Black "fighter2jz"]
[Result "0-1"]
[WhiteElo "2550"]
[BlackElo "2723"]
[TimeControl "180+1"]
[EndTime "11:16:24 PDT"]
[Termination "fighter2jz won by resignation"]

1. e4 {[%clk 0:02:31]} 1... c5 {[%clk 0:02:58]} 2. Nf3 {[%clk 0:02:28.8]} 2...
d6 {[%clk 0:02:53.8]} 3. d4 {[%clk 0:02:26.2]} 3... cxd4 {[%clk 0:02:53.9]} 4.
Nxd4 {[%clk 0:02:25.8]} 4... Nf6 {[%clk 0:02:52.1]} 5. Nc3 {[%clk 0:02:25.1]}
5... a6 {[%clk 0:02:52.3]} 6. Be2 {[%clk 0:02:24.4]} 6... e5 {[%clk 0:02:49.5]}
7. Nf3 {[%clk 0:02:23.8]} 7... Be7 {[%clk 0:02:49.9]} 8. O-O {[%clk 0:02:18.7]}
8... O-O {[%clk 0:02:50]} 9. Bg5 {[%clk 0:02:16.9]} 9... Nbd7 {[%clk 0:02:48.1]}
10. a4 {[%clk 0:02:10.4]} 10... h6 {[%clk 0:02:46.3]} 11. Bh4 {[%clk 0:02:05.5]}
11... b6 {[%clk 0:02:43.8]} 12. Nd2 {[%clk 0:02:03.9]} 12... Bb7 {[%clk
0:02:43.2]} 13. Nc4 {[%clk 0:02:03.9]} 13... Nxe4 {[%clk 0:02:33.2]} 14. Bxe7
{[%clk 0:01:52.3]} 14... Qxe7 {[%clk 0:02:23.3]} 15. Nxe4 {[%clk 0:01:49.1]}
15... Bxe4 {[%clk 0:02:24.2]} 16. Nxd6 {[%clk 0:01:49.4]} 16... Bxc2 {[%clk
0:02:14.6]} 17. Qxc2 {[%clk 0:01:42.1]} 17... Qxd6 {[%clk 0:02:14]} 18. Rfd1
{[%clk 0:01:42.6]} 18... Qc5 {[%clk 0:02:14]} 19. Qxc5 {[%clk 0:01:18.5]} 19...
Nxc5 {[%clk 0:02:12.4]} 20. Rd6 {[%clk 0:01:19.4]} 20... Nb3 {[%clk 0:02:01]}
21. Rad1 {[%clk 0:01:11.7]} 21... Nd4 {[%clk 0:01:59.2]} 22. Bf3 {[%clk
0:01:06.3]} 22... Rad8 {[%clk 0:01:56.8]} 23. Rxd8 {[%clk 0:01:00.7]} 23... Rxd8
{[%clk 0:01:56.3]} 24. Rc1 {[%clk 0:01:01.6]} 24... f5 {[%clk 0:01:18.7]} 25.
Bb7 {[%clk 0:00:58.5]} 25... Ne2+ {[%clk 0:01:16.7]} 0-1

[Event "*** SCC Grand Prix: Titled Tuesday Blitz"]
[Site "Chess.com"]
[Date "2020.09.08"]
[Round "7"]
[White "XiaoKangZhong"]
[Black "Agibileg"]
[Result "0-1"]
[WhiteElo "2435"]
[BlackElo "2584"]
[TimeControl "180+1"]
[EndTime "11:16:31 PDT"]
[Termination "Agibileg won by resignation"]

1. e4 {[%clk 0:03:00.9]} 1... c5 {[%clk 0:02:58.4]} 2. c3 {[%clk 0:03:01]} 2...
d5 {[%clk 0:02:57.3]} 3. exd5 {[%clk 0:03:01.9]} 3... Qxd5 {[%clk 0:02:57.6]} 4.
d4 {[%clk 0:03:02.8]} 4... Nf6 {[%clk 0:02:56.1]} 5. Nf3 {[%clk 0:03:01.8]} 5...
e6 {[%clk 0:02:56]} 6. Be3 {[%clk 0:03:01.6]} 6... Nc6 {[%clk 0:02:55]} 7. dxc5
{[%clk 0:02:54.6]} 7... Qxd1+ {[%clk 0:02:54.2]} 8. Kxd1 {[%clk 0:02:55.5]} 8...
Ng4 {[%clk 0:02:53.9]} 9. b4 {[%clk 0:02:52.6]} 9... Nxe3+ {[%clk 0:02:50.5]}
10. fxe3 {[%clk 0:02:53.5]} 10... a5 {[%clk 0:02:50.4]} 11. Bb5 {[%clk
0:02:52.8]} 11... axb4 {[%clk 0:02:47]} 12. cxb4 {[%clk 0:02:53.7]} 12... Bd7
{[%clk 0:02:46.8]} 13. Bxc6 {[%clk 0:02:53.6]} 13... Bxc6 {[%clk 0:02:46.7]} 14.
Nbd2 {[%clk 0:02:52.3]} 14... b6 {[%clk 0:02:42.5]} 15. Nd4 {[%clk 0:02:21.7]}
15... Bxg2 {[%clk 0:02:37.9]} 16. Rg1 {[%clk 0:02:22.1]} 16... Bd5 {[%clk
0:02:37.5]} 17. Nb5 {[%clk 0:02:10.8]} 17... Kd7 {[%clk 0:02:29.7]} 18. cxb6
{[%clk 0:02:08.9]} 18... Kc6 {[%clk 0:02:20.6]} 19. Nc7 {[%clk 0:02:02.3]} 19...
Rxa2 {[%clk 0:02:20.7]} 20. Rxa2 {[%clk 0:01:47.7]} 20... Bxa2 {[%clk
0:02:21.6]} 21. Na8 {[%clk 0:01:21.2]} 21... Kb7 {[%clk 0:02:19.7]} 22. Ke2
{[%clk 0:01:17.6]} 22... Bxb4 {[%clk 0:02:16.1]} 23. Nc7 {[%clk 0:01:07.6]}
23... Kxb6 {[%clk 0:02:12.9]} 24. Rc1 {[%clk 0:01:08.3]} 24... Rd8 {[%clk
0:01:55.2]} 25. Ne4 {[%clk 0:01:04.3]} 25... Rc8 {[%clk 0:01:52.4]} 26. Nd5+
{[%clk 0:00:59.7]} 26... exd5 {[%clk 0:01:52.5]} 27. Rxc8 {[%clk 0:01:00.6]}
27... dxe4 {[%clk 0:01:53]} 28. Rh8 {[%clk 0:00:55]} 28... g6 {[%clk 0:01:46.6]}
29. Rxh7 {[%clk 0:00:54.1]} 29... Bc4+ {[%clk 0:01:46.4]} 30. Kf2 {[%clk
0:00:53.6]} 30... Be7 {[%clk 0:01:44.5]} 31. h4 {[%clk 0:00:51.3]} 31... Kc6
{[%clk 0:01:43.1]} 32. h5 {[%clk 0:00:51.6]} 32... gxh5 {[%clk 0:01:42.1]} 33.
Rxh5 {[%clk 0:00:52.5]} 33... Kd6 {[%clk 0:01:41]} 34. Ke1 {[%clk 0:00:46.7]}
34... Ke6 {[%clk 0:01:39.8]} 35. Ra5 {[%clk 0:00:45.8]} 35... Bb4+ {[%clk
0:01:39.8]} 0-1

[Event "*** SCC Grand Prix: Titled Tuesday Blitz"]
[Site "Chess.com"]
[Date "2020.09.08"]
[Round "7"]
[White "RamyresCoelho"]
[Black "VojtechPlat"]
[Result "0-1"]
[WhiteElo "1799"]
[BlackElo "2831"]
[TimeControl "180+1"]
[EndTime "11:16:45 PDT"]
[Termination "VojtechPlat won on time"]

1. e4 {[%clk 0:02:59.6]} 1... d6 {[%clk 0:02:59.1]} 2. d4 {[%clk 0:02:59.4]}
2... Nf6 {[%clk 0:02:59.5]} 3. Nc3 {[%clk 0:02:59.8]} 3... e5 {[%clk 0:02:59.7]}
4. dxe5 {[%clk 0:02:59.2]} 4... dxe5 {[%clk 0:02:59.9]} 5. Qxd8+ {[%clk
0:03:00.1]} 5... Kxd8 {[%clk 0:03:00.5]} 6. Nf3 {[%clk 0:03:01]} 6... Bd6 {[%clk
0:02:59.5]} 7. Bc4 {[%clk 0:03:01.1]} 7... Ke7 {[%clk 0:02:57.1]} 8. Bg5 {[%clk
0:03:00.4]} 8... c6 {[%clk 0:02:57.2]} 9. O-O-O {[%clk 0:03:00.1]} 9... Bc7
{[%clk 0:02:57.4]} 10. a4 {[%clk 0:02:53.4]} 10... Nd7 {[%clk 0:02:56.6]} 11.
Rd3 {[%clk 0:02:44.9]} 11... a5 {[%clk 0:02:56.2]} 12. Rhd1 {[%clk 0:02:44]}
12... Nc5 {[%clk 0:02:56.3]} 13. Re3 {[%clk 0:02:37.2]} 13... Be6 {[%clk
0:02:54.8]} 14. Bxe6 {[%clk 0:02:36.5]} 14... Nxe6 {[%clk 0:02:54.8]} 15. Bxf6+
{[%clk 0:02:34.8]} 15... Kxf6 {[%clk 0:02:50.8]} 16. g3 {[%clk 0:02:31.3]} 16...
Ke7 {[%clk 0:02:45.9]} 17. Red3 {[%clk 0:02:30.6]} 17... Rhd8 {[%clk 0:02:45.3]}
18. Rxd8 {[%clk 0:02:30.4]} 18... Nxd8 {[%clk 0:02:45.3]} 19. Kd2 {[%clk
0:02:22.1]} 19... Ne6 {[%clk 0:02:44.9]} 20. Ke2 {[%clk 0:02:20.5]} 20... f6
{[%clk 0:02:45.2]} 21. h4 {[%clk 0:02:05.5]} 21... g6 {[%clk 0:02:43.6]} 22. Nb1
{[%clk 0:01:51.6]} 22... Bb6 {[%clk 0:02:41.4]} 23. b3 {[%clk 0:01:45.3]} 23...
Bd4 {[%clk 0:02:39.6]} 24. Nxd4 {[%clk 0:01:30.1]} 24... Nxd4+ {[%clk 0:02:39]}
25. Kd2 {[%clk 0:00:52.9]} 25... Rd8 {[%clk 0:02:38.2]} 26. Nc3 {[%clk
0:00:46.8]} 26... Nxb3+ {[%clk 0:02:30.3]} 27. Ke1 {[%clk 0:00:43.3]} 27...
Rxd1+ {[%clk 0:02:30.7]} 28. Kxd1 {[%clk 0:00:44.2]} 28... Nc5 {[%clk
0:02:30.8]} 29. Kd2 {[%clk 0:00:40.2]} 29... Kd6 {[%clk 0:02:30.9]} 30. Ke3
{[%clk 0:00:38.5]} 30... Ne6 {[%clk 0:02:30.9]} 31. Nd1 {[%clk 0:00:33.1]} 31...
b5 {[%clk 0:02:29.5]} 32. Nb2 {[%clk 0:00:32.3]} 32... Nc5 {[%clk 0:02:28.1]}
33. axb5 {[%clk 0:00:31.7]} 33... cxb5 {[%clk 0:02:27.8]} 34. f4 {[%clk
0:00:30]} 34... a4 {[%clk 0:02:27.7]} 35. Nd1 {[%clk 0:00:21.3]} 35... b4 {[%clk
0:02:27.4]} 36. Nb2 {[%clk 0:00:14.7]} 36... a3 {[%clk 0:02:27.6]} 37. Nc4+
{[%clk 0:00:15]} 37... Kc7 {[%clk 0:02:25.2]} 38. fxe5 {[%clk 0:00:07.4]} 38...
fxe5 {[%clk 0:02:25.7]} 39. Nxe5 {[%clk 0:00:01.1]} 39... a2 {[%clk 0:02:25.8]}
0-1

[Event "*** SCC Grand Prix: Titled Tuesday Blitz"]
[Site "Chess.com"]
[Date "2020.09.08"]
[Round "7"]
[White "MFguimaraes"]
[Black "Elegance_Riks"]
[Result "0-1"]
[WhiteElo "2409"]
[BlackElo "2603"]
[TimeControl "180+1"]
[EndTime "11:16:46 PDT"]
[Termination "Elegance_Riks won by resignation"]

1. e4 {[%clk 0:02:57.2]} 1... c6 {[%clk 0:02:59.4]} 2. Bc4 {[%clk 0:02:56.5]}
2... d5 {[%clk 0:02:59]} 3. Bb3 {[%clk 0:02:57]} 3... e6 {[%clk 0:02:56.6]} 4.
Nc3 {[%clk 0:02:55.1]} 4... Nf6 {[%clk 0:02:51.5]} 5. e5 {[%clk 0:02:54.2]} 5...
Nfd7 {[%clk 0:02:51.7]} 6. d4 {[%clk 0:02:54.5]} 6... c5 {[%clk 0:02:51.8]} 7.
Nf3 {[%clk 0:02:42.5]} 7... Nc6 {[%clk 0:02:51.8]} 8. Ba4 {[%clk 0:02:34.2]}
8... Qb6 {[%clk 0:02:50.3]} 9. Bxc6 {[%clk 0:02:34.1]} 9... bxc6 {[%clk
0:02:50.4]} 10. dxc5 {[%clk 0:02:31.1]} 10... Bxc5 {[%clk 0:02:46.2]} 11. O-O
{[%clk 0:02:31.2]} 11... Ba6 {[%clk 0:02:36.8]} 12. Na4 {[%clk 0:02:27.1]} 12...
Qb5 {[%clk 0:02:37]} 13. Nxc5 {[%clk 0:02:27]} 13... Nxc5 {[%clk 0:02:37.3]} 14.
Re1 {[%clk 0:02:24.7]} 14... Ne4 {[%clk 0:02:32]} 15. Nd2 {[%clk 0:02:14.8]}
15... Nxd2 {[%clk 0:02:24.7]} 16. Qxd2 {[%clk 0:02:08.2]} 16... O-O {[%clk
0:02:24.7]} 17. a4 {[%clk 0:01:47.2]} 17... Qb6 {[%clk 0:02:23.6]} 18. Ra3
{[%clk 0:01:45]} 18... f6 {[%clk 0:02:19.4]} 19. Rg3 {[%clk 0:01:36.4]} 19...
fxe5 {[%clk 0:02:09.7]} 20. Rxe5 {[%clk 0:01:36]} 20... Rf6 {[%clk 0:02:10]} 21.
Reg5 {[%clk 0:01:23.4]} 21... g6 {[%clk 0:02:04.2]} 22. Rf3 {[%clk 0:00:41.6]}
22... Rxf3 {[%clk 0:01:59.4]} 23. gxf3 {[%clk 0:00:42.5]} 23... Rf8 {[%clk
0:01:59]} 24. f4 {[%clk 0:00:42.9]} 24... Qc5 {[%clk 0:01:53.1]} 25. Qe3 {[%clk
0:00:41.8]} 25... Qxe3 {[%clk 0:01:47]} 26. Bxe3 {[%clk 0:00:38.9]} 26... Rf7
{[%clk 0:01:47.1]} 27. Re5 {[%clk 0:00:37.2]} 27... Bc8 {[%clk 0:01:47.3]} 28.
c4 {[%clk 0:00:35.9]} 28... Rb7 {[%clk 0:01:46.6]} 29. cxd5 {[%clk 0:00:35.4]}
29... cxd5 {[%clk 0:01:46.8]} 30. Bd4 {[%clk 0:00:31.2]} 30... Rb4 {[%clk
0:01:45]} 31. Bxa7 {[%clk 0:00:31]} 31... Rxa4 {[%clk 0:01:45]} 32. Re1 {[%clk
0:00:28.4]} 32... Rxa7 {[%clk 0:01:44.7]} 0-1

[Event "*** SCC Grand Prix: Titled Tuesday Blitz"]
[Site "Chess.com"]
[Date "2020.09.08"]
[Round "7"]
[White "anon481216"]
[Black "barbosean"]
[Result "1-0"]
[WhiteElo "2454"]
[BlackElo "2306"]
[TimeControl "180+1"]
[EndTime "11:16:51 PDT"]
[Termination "anon481216 won by resignation"]

1. d4 {[%clk 0:03:00.9]} 1... d5 {[%clk 0:02:56.8]} 2. c4 {[%clk 0:03:00.4]}
2... e6 {[%clk 0:02:56.9]} 3. Nf3 {[%clk 0:03:00]} 3... Be7 {[%clk 0:02:56.7]}
4. Nc3 {[%clk 0:02:58.9]} 4... Nf6 {[%clk 0:02:56.9]} 5. Bg5 {[%clk 0:02:58.2]}
5... h6 {[%clk 0:02:57.2]} 6. Bh4 {[%clk 0:02:58.1]} 6... Ne4 {[%clk 0:02:57.2]}
7. Bxe7 {[%clk 0:02:55.8]} 7... Qxe7 {[%clk 0:02:58.1]} 8. Rc1 {[%clk
0:02:54.2]} 8... O-O {[%clk 0:02:56.2]} 9. e3 {[%clk 0:02:53.4]} 9... b6 {[%clk
0:02:55.5]} 10. cxd5 {[%clk 0:02:45.9]} 10... Nxc3 {[%clk 0:02:54.2]} 11. Rxc3
{[%clk 0:02:45.9]} 11... exd5 {[%clk 0:02:54.1]} 12. Qa4 {[%clk 0:02:39.3]}
12... c6 {[%clk 0:02:09.6]} 13. Be2 {[%clk 0:02:31.9]} 13... Bb7 {[%clk
0:01:36.8]} 14. O-O {[%clk 0:02:31.1]} 14... a5 {[%clk 0:01:29.2]} 15. Ne5
{[%clk 0:02:22.9]} 15... Rc8 {[%clk 0:01:26]} 16. Bg4 {[%clk 0:02:15.9]} 16...
Rc7 {[%clk 0:01:25.5]} 17. Rfc1 {[%clk 0:02:12]} 17... c5 {[%clk 0:01:18.5]} 18.
Qb5 {[%clk 0:01:48.1]} 18... Qd6 {[%clk 0:00:57.9]} 19. Qe8+ {[%clk 0:01:47.2]}
19... Qf8 {[%clk 0:00:52.5]} 20. Qxf8+ {[%clk 0:01:47.1]} 20... Kxf8 {[%clk
0:00:50.9]} 21. dxc5 {[%clk 0:01:47.2]} 21... b5 {[%clk 0:00:42.9]} 22. c6
{[%clk 0:01:44.6]} 22... Bc8 {[%clk 0:00:43.1]} 23. Bxc8 {[%clk 0:01:31.4]}
23... Rxc8 {[%clk 0:00:41.7]} 24. c7 {[%clk 0:01:31]} 24... Na6 {[%clk
0:00:39.5]} 25. Nd7+ {[%clk 0:01:30.6]} 25... Ke7 {[%clk 0:00:38.9]} 26. Nb6
{[%clk 0:01:30.6]} 26... Nb4 {[%clk 0:00:31.7]} 27. Nxa8 {[%clk 0:01:26.3]}
27... Nxa2 {[%clk 0:00:31.4]} 28. Nb6 {[%clk 0:01:25.9]} 28... Nxc1 {[%clk
0:00:29.7]} 29. Rxc1 {[%clk 0:01:25.6]} 1-0

[Event "*** SCC Grand Prix: Titled Tuesday Blitz"]
[Site "Chess.com"]
[Date "2020.09.08"]
[Round "7"]
[White "lelya96"]
[Black "KetiGrant"]
[Result "0-1"]
[WhiteElo "2164"]
[BlackElo "2351"]
[TimeControl "180+1"]
[EndTime "11:16:52 PDT"]
[Termination "KetiGrant won by resignation"]

1. e4 {[%clk 0:03:00.9]} 1... c5 {[%clk 0:02:58.9]} 2. Nf3 {[%clk 0:03:00.2]}
2... Nc6 {[%clk 0:02:58.6]} 3. Bb5 {[%clk 0:02:59]} 3... g6 {[%clk 0:02:57.9]}
4. Bxc6 {[%clk 0:02:56.7]} 4... dxc6 {[%clk 0:02:57.9]} 5. d3 {[%clk 0:02:45.4]}
5... Bg7 {[%clk 0:02:58.2]} 6. O-O {[%clk 0:02:43.3]} 6... Nf6 {[%clk
0:02:55.9]} 7. Nc3 {[%clk 0:02:38.5]} 7... O-O {[%clk 0:02:53.2]} 8. h3 {[%clk
0:02:33.2]} 8... b6 {[%clk 0:02:52.1]} 9. Be3 {[%clk 0:02:24.7]} 9... Ba6 {[%clk
0:02:50.2]} 10. Re1 {[%clk 0:02:19.6]} 10... c4 {[%clk 0:02:48.6]} 11. d4 {[%clk
0:02:14.2]} 11... b5 {[%clk 0:02:48.5]} 12. a3 {[%clk 0:02:14]} 12... Bb7 {[%clk
0:02:47.7]} 13. Qd2 {[%clk 0:02:08.7]} 13... a5 {[%clk 0:02:47.2]} 14. e5 {[%clk
0:01:58.1]} 14... Nd5 {[%clk 0:02:45.4]} 15. Bh6 {[%clk 0:01:52.7]} 15... Nxc3
{[%clk 0:02:40.1]} 16. bxc3 {[%clk 0:01:52.2]} 16... c5 {[%clk 0:02:38.4]} 17.
Rab1 {[%clk 0:01:40.9]} 17... cxd4 {[%clk 0:02:16.4]} 18. Bxg7 {[%clk 0:01:25]}
18... Kxg7 {[%clk 0:02:14.7]} 19. Nxd4 {[%clk 0:01:22.9]} 19... Qd5 {[%clk
0:02:13.8]} 20. f3 {[%clk 0:01:20.7]} 20... Ba6 {[%clk 0:02:11.1]} 21. Nf5+
{[%clk 0:01:13.5]} 21... gxf5 {[%clk 0:02:10]} 22. Qxd5 {[%clk 0:01:13.1]} 22...
e6 {[%clk 0:02:10.2]} 23. Qc5 {[%clk 0:01:11]} 23... Rfc8 {[%clk 0:02:07.9]} 24.
Qe3 {[%clk 0:01:10.9]} 24... Kh8 {[%clk 0:02:03.1]} 25. Red1 {[%clk 0:01:06.7]}
25... Rg8 {[%clk 0:02:00.3]} 26. Rd7 {[%clk 0:01:05]} 26... Rg7 {[%clk
0:02:00.1]} 27. Rbd1 {[%clk 0:01:03.5]} 27... Rag8 {[%clk 0:01:58.7]} 28. Rd8
{[%clk 0:01:03.2]} 28... Rxg2+ {[%clk 0:01:57.8]} 29. Kh1 {[%clk 0:00:58.4]}
29... Bb7 {[%clk 0:01:55.8]} 30. Rxg8+ {[%clk 0:00:55.9]} 30... Rxg8 {[%clk
0:01:54.8]} 31. Rd7 {[%clk 0:00:54.2]} 31... Bc6 {[%clk 0:01:48]} 32. Rxf7
{[%clk 0:00:52.3]} 32... Rg3 {[%clk 0:01:45.1]} 33. Qh6 {[%clk 0:00:43.1]} 33...
Bxf3+ {[%clk 0:01:42.9]} 34. Kh2 {[%clk 0:00:41.5]} 34... Rg2+ {[%clk
0:01:42.9]} 35. Kh1 {[%clk 0:00:37.6]} 35... Rg6+ {[%clk 0:01:42.3]} 36. Kh2
{[%clk 0:00:37.4]} 36... Rxh6 {[%clk 0:01:42.3]} 37. Rb7 {[%clk 0:00:38]} 37...
Bxb7 {[%clk 0:01:40.8]} 0-1